DepartmentFamily,Entity,Date,ExpenseType,ExpenseArea,Supplier,PaymentNumber,InvoiceDistributionAmount,InvoiceDescription,SupplierPostCode,ExpenditureType
FOOD STANDARDS AGENCY - Westminster,FOOD STANDARDS AGENCY - Westminster,2018-09-07,EXP - PURCHASE OF GOODS/SERVICES - OTHER - PROGRAMME EXPENDITURE,ANALYSIS & RESEARCH BRANCH,NATIONAL CENTRE FOR SOCIAL RESEARCH,1011707102,155529,First 2 months of W5 fieldwork,EC1V 0AX,PROGRAMME
FOOD STANDARDS AGENCY - Westminster,FOOD STANDARDS AGENCY - Westminster,2018-09-26,EXP - PURCHASE OF GOODS/SERVICES - OTHER - PROGRAMME EXPENDITURE,FOODBORNE DISEASE CONTROL,ANIMAL AND PLANT HEALTH AGENCY,2012700515,138058.8,RESEARCH & DEV - REPORTABLE DISEASE & ZOONOSES,YO1 7PX,PROGRAMME
FOOD STANDARDS AGENCY - Westminster,FOOD STANDARDS AGENCY - Westminster,2018-09-18,EXP - PURCHASE OF GOODS/SERVICES - TELECOMS - TELEPHONE,IT SERVICE DELIVERY,EXPONENTIAL E LTD,1011707178,123512,CENTRALISED INTERNET,E1 8EU,ADMIN
FOOD STANDARDS AGENCY - Westminster,FOOD STANDARDS AGENCY - Westminster,2018-09-19,EXP - PURCHASE OF GOODS/SERVICES - SHARED SERV OUTSRCG- CIVIL SERV PENSION ADMIN,FINANCE,LONDON PENSIONS FUND AUTHORITY,1011707192,121657.75,2018-19 LPFA Pension Deficit reduction.,EC3N 4LP,ADMIN
FOOD STANDARDS AGENCY - Westminster,FOOD STANDARDS AGENCY - Westminster,2018-09-28,Exp - Purchase Of Goods/Services - Consultancy,NATIONAL FOOD CRIME UNIT - PHASE 2,PA CONSULTING SERVICES LTD,1011707241,66175,FSA572 Work Package 3 NFCU Phase 2,SG8 6DP,PROGRAMME
FOOD STANDARDS AGENCY - Westminster,FOOD STANDARDS AGENCY - Westminster,2018-09-27,EXP - PURCHASE OF GOODS/SERVICES -OTHER PROFESSIONAL SERVICES - LEGAL,OPERATIONS ASSURANCE ,SAS DANIELS LLP,1011707235,53354.15,LEGAL COSTS,SK3 8AD,PROGRAMME
FOOD STANDARDS AGENCY - Westminster,FOOD STANDARDS AGENCY - Westminster,2018-09-24,EXP - PURCHASE OF GOODS/SERVICES - OTHER - PROGRAMME EXPENDITURE,SCIENTIFIC METHODS AND LABORATORY POLICY,LGC LTD,1011707210,40000,FS101206-DEVELOPMENT OF QUALITY CONTROL MATERIALS FOR FOOD ALLERGEN ANALYSIS,TW11 0LY,PROGRAMME
FOOD STANDARDS AGENCY - Westminster,FOOD STANDARDS AGENCY - Westminster,2018-09-25,EXP - PURCHASE OF GOODS/SERVICES - OTHER ICT COSTS - COMPUTER HARDWARE,IT SERVICE DELIVERY,COREAZURE LTD,1011707215,39780.76,"Datacentre Discovery and Design  VMs, OMS & Storage (WP5)",EC1A 4EN,ADMIN
FOOD STANDARDS AGENCY - Westminster,FOOD STANDARDS AGENCY - Westminster,2018-09-20,EXP - PURCHASE OF GOODS/SERVICES - OTHER - PROGRAMME EXPENDITURE,REGULATORY DELIVERY,C E F A S,2012700511,36262.5,Shellfish biotoxin monitoring 2018/19,NR33 0HT,PROGRAMME
FOOD STANDARDS AGENCY - Westminster,FOOD STANDARDS AGENCY - Westminster,2018-09-05,EXP - PURCHASE OF GOODS/SERVICES - OTHER ICT COSTS - COMPUTER HARDWARE,IT SERVICE DELIVERY,COREAZURE LTD,1011707067,31655,Datacentre Discovery and Design,EC1A 4EN,ADMIN
FOOD STANDARDS AGENCY - Westminster,FOOD STANDARDS AGENCY - Westminster,2018-09-28,EXP - PURCHASE OF GOODS/SERVICES - OTHER - PROGRAMME EXPENDITURE,SCIENTIFIC METHODS AND LABORATORY POLICY,FERA SCIENCE LIMITED,1011707247,30051.92,National Reference Laboratory for Contaminants for core costs and ad hoc costs in : 2018 - 2019,YO41 1LZ,PROGRAMME
FOOD STANDARDS AGENCY - Westminster,FOOD STANDARDS AGENCY - Westminster,2018-09-06,EXP - PURCHASE OF GOODS/SERVICES - TRAINING & DEVELOPMENT,PEOPLE & ORGANISATIONAL CHANGE,CSL - K P M G LLP,1011707080,28202,"Future, Engage, Deliver course",WD17 1DE,ADMIN
FOOD STANDARDS AGENCY - Westminster,FOOD STANDARDS AGENCY - Westminster,2018-09-26,EXP - PURCHASE OF GOODS/SERVICES - OTHER PROFESSIONAL SERVICES,OPERATIONAL DELIVERY,ARCO UK LTD,1011707232,26507.33,Extension to contract,HU1 2SJ,PROGRAMME
FOOD STANDARDS AGENCY - Westminster,FOOD STANDARDS AGENCY - Westminster,2018-09-17,EXP - PURCHASE OF GOODS/SERVICES - OTHER - NEXT GENERATION - HR,PEOPLE & ORGANISATIONAL CHANGE,CABINET OFFICE,2012700506,26252.01,CIVIL SERVICE HR EXPERT SERVICES 2018-19,SW1A 2AS,ADMIN
FOOD STANDARDS AGENCY - Westminster,FOOD STANDARDS AGENCY - Westminster,2018-09-05,EXP - PURCHASE OF GOODS/SERV - SUPPORT - IT SUPPORT SERVICES,IT SERVICE DELIVERY,LITTLE FISH UK LTD,1011707068,24611,IT Services,NG1 1LS,ADMIN
FOOD STANDARDS AGENCY - Westminster,FOOD STANDARDS AGENCY - Westminster,2018-09-05,EXP - PURCHASE OF GOODS/SERV - SUPPORT - IT SUPPORT SERVICES,IT SERVICE DELIVERY,LITTLE FISH UK LTD,1011707068,24264,IT Services,NG1 1LS,ADMIN
FOOD STANDARDS AGENCY - Westminster,FOOD STANDARDS AGENCY - Westminster,2018-09-12,EXP - PURCHASE OF GOODS/SERV - SUPPORT - IT SUPPORT SERVICES,FINANCE,SHARED SERVICES CONNECTED LTD,1011707132,24178.93,SSCL Core Charge Management Services ,HP2 7AH,ADMIN
FOOD STANDARDS AGENCY - Westminster,FOOD STANDARDS AGENCY - Westminster,2018-09-28,EXP - PURCHASE OF GOODS/SERVICES - PERSONNEL RELATED - RECRUITMENT ADVERTISING,PEOPLE & ORGANISATIONAL CHANGE,CABINET OFFICE,2012700517,22314,Recruitment campaign,SW1A 2AS,ADMIN
FOOD STANDARDS AGENCY - Westminster,FOOD STANDARDS AGENCY - Westminster,2018-09-06,EXP - PURCHASE OF GOODS/SERVICES -OTHER PROF SERV - PAYMENTS TO PAYROLL PROVIDER,FINANCE,MIDLAND SOFTWARE LTD,1011707085,21414,BACKDATED CHARGES AS AGREED,NG11 6LL,ADMIN
FOOD STANDARDS AGENCY - Westminster,FOOD STANDARDS AGENCY - Westminster,2018-09-06,EXP - PURCHASE OF GOODS/SERVICES -OTHER PROF SERV - PAYMENTS TO PAYROLL PROVIDER,PEOPLE & ORGANISATIONAL CHANGE,MIDLAND SOFTWARE LTD,1011707085,21414,BACKDATED CHARGES AS AGREED,NG11 6LL,ADMIN
FOOD STANDARDS AGENCY - Westminster,FOOD STANDARDS AGENCY - Westminster,2018-09-20,EXP - PURCHASE OF GOODS/SERVICES - OTHER - PROGRAMME EXPENDITURE,REGULATORY DELIVERY,C E F A S,2012700511,21076,Shellfish classification,NR33 0HT,PROGRAMME
FOOD STANDARDS AGENCY - Westminster,FOOD STANDARDS AGENCY - Westminster,2018-09-28,Exp - Purchase Of Goods/Services - Consultancy,NATIONAL FOOD CRIME UNIT - PHASE 2,PA CONSULTING SERVICES LTD,1011707241,13235,PROFESSIONAL FEES,SG8 6DP,PROGRAMME
FOOD STANDARDS AGENCY - Westminster,FOOD STANDARDS AGENCY - Westminster,2018-09-18,EXP - PURCHASE OF GOODS/SERVICES - TELECOMS - TELEPHONE,IT SERVICE DELIVERY,EXPONENTIAL E LTD,1011707178,9599,CENTRALISED INTERNET,E1 8EU,ADMIN
FOOD STANDARDS AGENCY - Westminster,FOOD STANDARDS AGENCY - Westminster,2018-09-18,EXP - PURCHASE OF GOODS/SERVICES - TELECOMS - TELEPHONE,IT SERVICE DELIVERY,EXPONENTIAL E LTD,1011707178,8405,CENTRALISED INTERNET,E1 8EU,ADMIN
FOOD STANDARDS AGENCY - Westminster,FOOD STANDARDS AGENCY - Westminster,2018-09-18,EXP - PURCHASE OF GOODS/SERVICES - TELECOMS - TELEPHONE,IT SERVICE DELIVERY,EXPONENTIAL E LTD,1011707178,8287,CENTRALISED INTERNET,E1 8EU,ADMIN
FOOD STANDARDS AGENCY - Westminster,FOOD STANDARDS AGENCY - Westminster,2018-09-18,EXP - PURCHASE OF GOODS/SERVICES - TELECOMS - TELEPHONE,IT SERVICE DELIVERY,EXPONENTIAL E LTD,1011707178,8287,CENTRALISED INTERNET,E1 8EU,ADMIN
FOOD STANDARDS AGENCY - Westminster,FOOD STANDARDS AGENCY - Westminster,2018-09-18,EXP - PURCHASE OF GOODS/SERVICES - TELECOMS - TELEPHONE,IT SERVICE DELIVERY,EXPONENTIAL E LTD,1011707178,5975,CENTRALISED INTERNET,E1 8EU,ADMIN
FOOD STANDARDS AGENCY - Westminster,FOOD STANDARDS AGENCY - Westminster,2018-09-18,EXP - PURCHASE OF GOODS/SERVICES - TELECOMS - TELEPHONE,IT SERVICE DELIVERY,EXPONENTIAL E LTD,1011707178,5975,CENTRALISED INTERNET,E1 8EU,ADMIN
FOOD STANDARDS AGENCY - Westminster,FOOD STANDARDS AGENCY - Westminster,2018-09-18,EXP - PURCHASE OF GOODS/SERVICES - TELECOMS - TELEPHONE,IT SERVICE DELIVERY,EXPONENTIAL E LTD,1011707178,5704.8,CENTRALISED INTERNET,E1 8EU,ADMIN
FOOD STANDARDS AGENCY - Westminster,FOOD STANDARDS AGENCY - Westminster,2018-09-26,EXP - PURCHASE OF GOODS/SERVICES - OTHER PROFESSIONAL SERVICES,OPERATIONAL DELIVERY,ARCO UK LTD,1011707232,5301.51,FOR GOODS INVOICED,HU1 2SJ,PROGRAMME
FOOD STANDARDS AGENCY - Westminster,FOOD STANDARDS AGENCY - Westminster,2018-09-17,EXP - PURCHASE OF GOODS/SERVICES - OTHER - NEXT GENERATION - HR,PEOPLE & ORGANISATIONAL CHANGE,CABINET OFFICE,2012700506,5250.4,CAB INCOME,SW1A 2AS,ADMIN
FOOD STANDARDS AGENCY - Westminster,FOOD STANDARDS AGENCY - Westminster,2018-09-24,EXP - PURCHASE OF GOODS/SERVICES - RAIL TRAVEL,Organisational Development,CORPORATE TRAVEL MANAGEMENT NORTH LTD,1011707208,3475.5,TRAVEL EXPENSES UK wk 37,BD1 5HQ,ADMIN
FOOD STANDARDS AGENCY - Westminster,FOOD STANDARDS AGENCY - Westminster,2018-09-24,EXP - PURCHASE OF GOODS/SERVICES - RAIL TRAVEL,Operational Delivery,CORPORATE TRAVEL MANAGEMENT NORTH LTD,1011707208,3111.58,TRAVEL EXPENSES UK wk 37,BD1 5HQ,PROGRAMME
FOOD STANDARDS AGENCY - Westminster,FOOD STANDARDS AGENCY - Westminster,2018-09-17,EXP - PURCHASE OF GOODS/SERVICES - RAIL TRAVEL,Organisational Development,CORPORATE TRAVEL MANAGEMENT NORTH LTD,1011707169,2478.55,TRAVEL EXPENSES -UK Wk 36,BD1 5HQ,ADMIN
FOOD STANDARDS AGENCY - Westminster,FOOD STANDARDS AGENCY - Westminster,2018-09-17,EXP - PURCHASE OF GOODS/SERVICES - RAIL TRAVEL,Operational Delivery,CORPORATE TRAVEL MANAGEMENT NORTH LTD,1011707169,2341.5,TRAVEL EXPENSES -UK Wk 36,BD1 5HQ,PROGRAMME
FOOD STANDARDS AGENCY - Westminster,FOOD STANDARDS AGENCY - Westminster,2018-09-17,EXP - PURCHASE OF GOODS/SERVICES - RAIL TRAVEL,Corporate Support Unit,CORPORATE TRAVEL MANAGEMENT NORTH LTD,1011707169,2303.6,TRAVEL EXPENSES -UK Wk 36,BD1 5HQ,ADMIN
FOOD STANDARDS AGENCY - Westminster,FOOD STANDARDS AGENCY - Westminster,2018-09-17,EXP - PURCHASE OF GOODS/SERVICES - RAIL TRAVEL,Operations Assurance ,CORPORATE TRAVEL MANAGEMENT NORTH LTD,1011707169,2232.35,TRAVEL EXPENSES -UK Wk 36,BD1 5HQ,PROGRAMME
FOOD STANDARDS AGENCY - Westminster,FOOD STANDARDS AGENCY - Westminster,2018-09-17,EXP - PURCHASE OF GOODS/SERVICES - RAIL TRAVEL,REGULATORY DELIVERY,CORPORATE TRAVEL MANAGEMENT NORTH LTD,1011707169,1704.35,TRAVEL EXPENSES -UK Wk 36,BD1 5HQ,ADMIN
FOOD STANDARDS AGENCY - Westminster,FOOD STANDARDS AGENCY - Westminster,2018-09-17,EXP - PURCHASE OF GOODS/SERVICES - SUBSISTENCE,Operational Delivery,CORPORATE TRAVEL MANAGEMENT NORTH LTD,1011707169,1645.53,TRAVEL EXPENSES -UK Wk 36,BD1 5HQ,PROGRAMME
FOOD STANDARDS AGENCY - Westminster,FOOD STANDARDS AGENCY - Westminster,2018-09-17,EXP - PURCHASE OF GOODS/SERVICES - RAIL TRAVEL,Comms Directors Office,CORPORATE TRAVEL MANAGEMENT NORTH LTD,1011707169,1551.3,TRAVEL EXPENSES -UK Wk 36,BD1 5HQ,ADMIN
FOOD STANDARDS AGENCY - Westminster,FOOD STANDARDS AGENCY - Westminster,2018-09-24,EXP - PURCHASE OF GOODS/SERVICES - RAIL TRAVEL,REGULATORY DELIVERY,CORPORATE TRAVEL MANAGEMENT NORTH LTD,1011707208,1230.78,TRAVEL EXPENSES UK wk 37,BD1 5HQ,ADMIN
FOOD STANDARDS AGENCY - Westminster,FOOD STANDARDS AGENCY - Westminster,2018-09-24,EXP - PURCHASE OF GOODS/SERVICES - SUBSISTENCE,Operations Assurance ,CORPORATE TRAVEL MANAGEMENT NORTH LTD,1011707208,1202.8,TRAVEL EXPENSES UK wk 37,BD1 5HQ,PROGRAMME
FOOD STANDARDS AGENCY - Westminster,FOOD STANDARDS AGENCY - Westminster,2018-09-24,EXP - PURCHASE OF GOODS/SERVICES - RAIL TRAVEL,Regulating our Future,CORPORATE TRAVEL MANAGEMENT NORTH LTD,1011707208,1167.1,TRAVEL EXPENSES UK wk 37,BD1 5HQ,ADMIN
FOOD STANDARDS AGENCY - Westminster,FOOD STANDARDS AGENCY - Westminster,2018-09-24,EXP - PURCHASE OF GOODS/SERVICES - RAIL TRAVEL,Operations Assurance ,CORPORATE TRAVEL MANAGEMENT NORTH LTD,1011707208,1156.06,TRAVEL EXPENSES UK wk 37,BD1 5HQ,PROGRAMME
FOOD STANDARDS AGENCY - Westminster,FOOD STANDARDS AGENCY - Westminster,2018-09-24,EXP - PURCHASE OF GOODS/SERVICES - SUBSISTENCE,Organisational Development,CORPORATE TRAVEL MANAGEMENT NORTH LTD,1011707208,1101.45,TRAVEL EXPENSES UK wk 37,BD1 5HQ,ADMIN
FOOD STANDARDS AGENCY - Westminster,FOOD STANDARDS AGENCY - Westminster,2018-09-17,EXP - PURCHASE OF GOODS/SERVICES - RAIL TRAVEL,Planning and Performance,CORPORATE TRAVEL MANAGEMENT NORTH LTD,1011707169,1085.9,TRAVEL EXPENSES -UK Wk 36,BD1 5HQ,ADMIN
FOOD STANDARDS AGENCY - Westminster,FOOD STANDARDS AGENCY - Westminster,2018-09-24,EXP - PURCHASE OF GOODS/SERVICES - RAIL TRAVEL,Chief Executive & Private Office,CORPORATE TRAVEL MANAGEMENT NORTH LTD,1011707208,1061.4,TRAVEL EXPENSES UK wk 37,BD1 5HQ,ADMIN
FOOD STANDARDS AGENCY - Westminster,FOOD STANDARDS AGENCY - Westminster,2018-09-17,EXP - PURCHASE OF GOODS/SERVICES - SUBSISTENCE,REGULATORY DELIVERY,CORPORATE TRAVEL MANAGEMENT NORTH LTD,1011707169,977.7,TRAVEL EXPENSES -UK Wk 36,BD1 5HQ,ADMIN
FOOD STANDARDS AGENCY - Westminster,FOOD STANDARDS AGENCY - Westminster,2018-09-24,EXP - PURCHASE OF GOODS/SERVICES - AIR TRAVEL,Operations Assurance ,CORPORATE TRAVEL MANAGEMENT NORTH LTD,1011707208,857.96,TRAVEL EXPENSES UK wk 37,BD1 5HQ,PROGRAMME
FOOD STANDARDS AGENCY - Westminster,FOOD STANDARDS AGENCY - Westminster,2018-09-17,EXP - PURCHASE OF GOODS/SERVICES - AIR TRAVEL,Operations Assurance ,CORPORATE TRAVEL MANAGEMENT NORTH LTD,1011707169,803.69,TRAVEL EXPENSES -UK Wk 36,BD1 5HQ,PROGRAMME
FOOD STANDARDS AGENCY - Westminster,FOOD STANDARDS AGENCY - Westminster,2018-09-24,EXP - PURCHASE OF GOODS/SERVICES - RAIL TRAVEL,IT Information & Knowledge Management,CORPORATE TRAVEL MANAGEMENT NORTH LTD,1011707208,779.2,TRAVEL EXPENSES UK wk 37,BD1 5HQ,ADMIN
FOOD STANDARDS AGENCY - Westminster,FOOD STANDARDS AGENCY - Westminster,2018-09-24,EXP - PURCHASE OF GOODS/SERVICES - SUBSISTENCE,REGULATORY DELIVERY,CORPORATE TRAVEL MANAGEMENT NORTH LTD,1011707208,779.1,TRAVEL EXPENSES UK wk 37,BD1 5HQ,ADMIN
FOOD STANDARDS AGENCY - Westminster,FOOD STANDARDS AGENCY - Westminster,2018-09-24,EXP - PURCHASE OF GOODS/SERVICES - RAIL TRAVEL,Regulatory & International,CORPORATE TRAVEL MANAGEMENT NORTH LTD,1011707208,756.85,TRAVEL EXPENSES UK wk 37,BD1 5HQ,ADMIN
FOOD STANDARDS AGENCY - Westminster,FOOD STANDARDS AGENCY - Westminster,2018-09-24,EXP - PURCHASE OF GOODS/SERVICES - RAIL TRAVEL,Contaminants HoD,CORPORATE TRAVEL MANAGEMENT NORTH LTD,1011707208,741.3,TRAVEL EXPENSES UK wk 37,BD1 5HQ,ADMIN
FOOD STANDARDS AGENCY - Westminster,FOOD STANDARDS AGENCY - Westminster,2018-09-17,EXP - PURCHASE OF GOODS/SERVICES - SUBSISTENCE,Organisational Development,CORPORATE TRAVEL MANAGEMENT NORTH LTD,1011707169,718,TRAVEL EXPENSES -UK Wk 36,BD1 5HQ,ADMIN
FOOD STANDARDS AGENCY - Westminster,FOOD STANDARDS AGENCY - Westminster,2018-09-24,EXP - PURCHASE OF GOODS/SERVICES - RAIL TRAVEL,Programme and project delivery,CORPORATE TRAVEL MANAGEMENT NORTH LTD,1011707208,705.3,TRAVEL EXPENSES UK wk 37,BD1 5HQ,ADMIN
FOOD STANDARDS AGENCY - Westminster,FOOD STANDARDS AGENCY - Westminster,2018-09-17,EXP - PURCHASE OF GOODS/SERVICES - SUBSISTENCE,Comms Directors Office,CORPORATE TRAVEL MANAGEMENT NORTH LTD,1011707169,694.5,TRAVEL EXPENSES -UK Wk 36,BD1 5HQ,ADMIN
FOOD STANDARDS AGENCY - Westminster,FOOD STANDARDS AGENCY - Westminster,2018-09-24,EXP - PURCHASE OF GOODS/SERVICES - RAIL TRAVEL,Food Crime Unit - Prog,CORPORATE TRAVEL MANAGEMENT NORTH LTD,1011707208,594.42,TRAVEL EXPENSES UK wk 37,BD1 5HQ,PROGRAMME
FOOD STANDARDS AGENCY - Westminster,FOOD STANDARDS AGENCY - Westminster,2018-09-24,EXP - PURCHASE OF GOODS/SERVICES - RAIL TRAVEL,Planning and Performance,CORPORATE TRAVEL MANAGEMENT NORTH LTD,1011707208,591.8,TRAVEL EXPENSES UK wk 37,BD1 5HQ,ADMIN
FOOD STANDARDS AGENCY - Westminster,FOOD STANDARDS AGENCY - Westminster,2018-09-17,EXP - PURCHASE OF GOODS/SERVICES - RAIL TRAVEL,Regulatory & International,CORPORATE TRAVEL MANAGEMENT NORTH LTD,1011707169,584.85,TRAVEL EXPENSES -UK Wk 36,BD1 5HQ,ADMIN
FOOD STANDARDS AGENCY - Westminster,FOOD STANDARDS AGENCY - Westminster,2018-09-24,EXP - PURCHASE OF GOODS/SERVICES - SUBSISTENCE,Contaminants HoD,CORPORATE TRAVEL MANAGEMENT NORTH LTD,1011707208,583.3,TRAVEL EXPENSES UK wk 37,BD1 5HQ,ADMIN
FOOD STANDARDS AGENCY - Westminster,FOOD STANDARDS AGENCY - Westminster,2018-09-17,EXP - PURCHASE OF GOODS/SERVICES - RAIL TRAVEL,Digital,CORPORATE TRAVEL MANAGEMENT NORTH LTD,1011707169,559.6,TRAVEL EXPENSES -UK Wk 36,BD1 5HQ,ADMIN
FOOD STANDARDS AGENCY - Westminster,FOOD STANDARDS AGENCY - Westminster,2018-09-24,EXP - PURCHASE OF GOODS/SERVICES - SUBSISTENCE,Operational Delivery,CORPORATE TRAVEL MANAGEMENT NORTH LTD,1011707208,553.04,TRAVEL EXPENSES UK wk 37,BD1 5HQ,PROGRAMME
FOOD STANDARDS AGENCY - Westminster,FOOD STANDARDS AGENCY - Westminster,2018-09-17,EXP - PURCHASE OF GOODS/SERVICES - SUBSISTENCE,Operations Assurance ,CORPORATE TRAVEL MANAGEMENT NORTH LTD,1011707169,544.3,TRAVEL EXPENSES -UK Wk 36,BD1 5HQ,PROGRAMME
FOOD STANDARDS AGENCY - Westminster,FOOD STANDARDS AGENCY - Westminster,2018-09-17,EXP - PURCHASE OF GOODS/SERVICES - RAIL TRAVEL,Food Incidents & Resilience - Prog,CORPORATE TRAVEL MANAGEMENT NORTH LTD,1011707169,540.9,TRAVEL EXPENSES -UK Wk 36,BD1 5HQ,PROGRAMME
FOOD STANDARDS AGENCY - Westminster,FOOD STANDARDS AGENCY - Westminster,2018-09-24,EXP - PURCHASE OF GOODS/SERVICES - RAIL TRAVEL,Digital,CORPORATE TRAVEL MANAGEMENT NORTH LTD,1011707208,539.9,TRAVEL EXPENSES UK wk 37,BD1 5HQ,ADMIN
FOOD STANDARDS AGENCY - Westminster,FOOD STANDARDS AGENCY - Westminster,2018-09-17,EXP - PURCHASE OF GOODS/SERVICES - RAIL TRAVEL,Chief Scientist,CORPORATE TRAVEL MANAGEMENT NORTH LTD,1011707169,535.2,TRAVEL EXPENSES -UK Wk 36,BD1 5HQ,ADMIN
FOOD STANDARDS AGENCY - Westminster,FOOD STANDARDS AGENCY - Westminster,2018-09-17,EXP - PURCHASE OF GOODS/SERVICES - SUBSISTENCE,Regulatory & International,CORPORATE TRAVEL MANAGEMENT NORTH LTD,1011707169,504.15,TRAVEL EXPENSES -UK Wk 36,BD1 5HQ,ADMIN
FOOD STANDARDS AGENCY - Westminster,FOOD STANDARDS AGENCY - Westminster,2018-09-17,EXP - PURCHASE OF GOODS/SERVICES - RAIL TRAVEL,FINANCE,CORPORATE TRAVEL MANAGEMENT NORTH LTD,1011707169,498.4,TRAVEL EXPENSES -UK Wk 36,BD1 5HQ,ADMIN
FOOD STANDARDS AGENCY - Westminster,FOOD STANDARDS AGENCY - Westminster,2018-09-17,EXP - PURCHASE OF GOODS/SERVICES - RAIL TRAVEL,Wales and West 3 ,CORPORATE TRAVEL MANAGEMENT NORTH LTD,1011707169,459.1,TRAVEL EXPENSES -UK Wk 36,BD1 5HQ,PROGRAMME
FOOD STANDARDS AGENCY - Westminster,FOOD STANDARDS AGENCY - Westminster,2018-09-17,EXP - PURCHASE OF GOODS/SERVICES - RAIL TRAVEL,Regulating our Future,CORPORATE TRAVEL MANAGEMENT NORTH LTD,1011707169,446.65,TRAVEL EXPENSES -UK Wk 36,BD1 5HQ,ADMIN
FOOD STANDARDS AGENCY - Westminster,FOOD STANDARDS AGENCY - Westminster,2018-09-24,EXP - PURCHASE OF GOODS/SERVICES - SUBSISTENCE,IT Information & Knowledge Management,CORPORATE TRAVEL MANAGEMENT NORTH LTD,1011707208,440.9,TRAVEL EXPENSES UK wk 37,BD1 5HQ,ADMIN
FOOD STANDARDS AGENCY - Westminster,FOOD STANDARDS AGENCY - Westminster,2018-09-17,EXP - PURCHASE OF GOODS/SERVICES - RAIL TRAVEL,Programme and project delivery,CORPORATE TRAVEL MANAGEMENT NORTH LTD,1011707169,435.2,TRAVEL EXPENSES -UK Wk 36,BD1 5HQ,ADMIN
FOOD STANDARDS AGENCY - Westminster,FOOD STANDARDS AGENCY - Westminster,2018-09-24,EXP - PURCHASE OF GOODS/SERVICES - RAIL TRAVEL,Chief Scientist,CORPORATE TRAVEL MANAGEMENT NORTH LTD,1011707208,433.3,TRAVEL EXPENSES UK wk 37,BD1 5HQ,ADMIN
FOOD STANDARDS AGENCY - Westminster,FOOD STANDARDS AGENCY - Westminster,2018-09-24,EXP - PURCHASE OF GOODS/SERVICES - RAIL TRAVEL,Corporate Support Unit,CORPORATE TRAVEL MANAGEMENT NORTH LTD,1011707208,429.5,TRAVEL EXPENSES UK wk 37,BD1 5HQ,ADMIN
FOOD STANDARDS AGENCY - Westminster,FOOD STANDARDS AGENCY - Westminster,2018-09-17,EXP - PURCHASE OF GOODS/SERVICES - RAIL TRAVEL,IT Service Delivery,CORPORATE TRAVEL MANAGEMENT NORTH LTD,1011707169,420.3,TRAVEL EXPENSES -UK Wk 36,BD1 5HQ,ADMIN
FOOD STANDARDS AGENCY - Westminster,FOOD STANDARDS AGENCY - Westminster,2018-09-17,EXP - PURCHASE OF GOODS/SERVICES - SUBSISTENCE,Wales and West 3 ,CORPORATE TRAVEL MANAGEMENT NORTH LTD,1011707169,411.05,TRAVEL EXPENSES -UK Wk 36,BD1 5HQ,PROGRAMME
FOOD STANDARDS AGENCY - Westminster,FOOD STANDARDS AGENCY - Westminster,2018-09-24,EXP - PURCHASE OF GOODS/SERVICES - SUBSISTENCE,Resilience - Admin,CORPORATE TRAVEL MANAGEMENT NORTH LTD,1011707208,404.2,TRAVEL EXPENSES UK wk 37,BD1 5HQ,ADMIN
FOOD STANDARDS AGENCY - Westminster,FOOD STANDARDS AGENCY - Westminster,2018-09-17,EXP - PURCHASE OF GOODS/SERVICES - SUBSISTENCE,IT Information & Knowledge Management,CORPORATE TRAVEL MANAGEMENT NORTH LTD,1011707169,380.8,TRAVEL EXPENSES -UK Wk 36,BD1 5HQ,ADMIN
FOOD STANDARDS AGENCY - Westminster,FOOD STANDARDS AGENCY - Westminster,2018-09-17,EXP - PURCHASE OF GOODS/SERVICES - RAIL TRAVEL,East 4,CORPORATE TRAVEL MANAGEMENT NORTH LTD,1011707169,376.2,TRAVEL EXPENSES -UK Wk 36,BD1 5HQ,PROGRAMME
FOOD STANDARDS AGENCY - Westminster,FOOD STANDARDS AGENCY - Westminster,2018-09-24,EXP - PURCHASE OF GOODS/SERVICES - SUBSISTENCE,Food Incidents & Resilience - Prog,CORPORATE TRAVEL MANAGEMENT NORTH LTD,1011707208,368.95,TRAVEL EXPENSES UK wk 37,BD1 5HQ,PROGRAMME
FOOD STANDARDS AGENCY - Westminster,FOOD STANDARDS AGENCY - Westminster,2018-09-24,EXP - PURCHASE OF GOODS/SERVICES - SUBSISTENCE,Wales and West 1 (England),CORPORATE TRAVEL MANAGEMENT NORTH LTD,1011707208,364.2,TRAVEL EXPENSES UK wk 37,BD1 5HQ,PROGRAMME
FOOD STANDARDS AGENCY - Westminster,FOOD STANDARDS AGENCY - Westminster,2018-09-24,EXP - PURCHASE OF GOODS/SERVICES - RAIL TRAVEL,Non Meat Field Ops,CORPORATE TRAVEL MANAGEMENT NORTH LTD,1011707208,356.7,TRAVEL EXPENSES UK wk 37,BD1 5HQ,PROGRAMME
FOOD STANDARDS AGENCY - Westminster,FOOD STANDARDS AGENCY - Westminster,2018-09-24,EXP - PURCHASE OF GOODS/SERVICES - SUBSISTENCE,Regulating our Future,CORPORATE TRAVEL MANAGEMENT NORTH LTD,1011707208,356.3,TRAVEL EXPENSES UK wk 37,BD1 5HQ,ADMIN
FOOD STANDARDS AGENCY - Westminster,FOOD STANDARDS AGENCY - Westminster,2018-09-17,EXP - PURCHASE OF GOODS/SERVICES - RAIL TRAVEL,Imports & Exports Team (Admin),CORPORATE TRAVEL MANAGEMENT NORTH LTD,1011707169,355.6,TRAVEL EXPENSES -UK Wk 36,BD1 5HQ,ADMIN
FOOD STANDARDS AGENCY - Westminster,FOOD STANDARDS AGENCY - Westminster,2018-09-24,EXP - PURCHASE OF GOODS/SERVICES - SUBSISTENCE,Chief Scientist,CORPORATE TRAVEL MANAGEMENT NORTH LTD,1011707208,351.6,TRAVEL EXPENSES UK wk 37,BD1 5HQ,ADMIN
FOOD STANDARDS AGENCY - Westminster,FOOD STANDARDS AGENCY - Westminster,2018-09-17,EXP - PURCHASE OF GOODS/SERVICES - SUBSISTENCE,Contaminants HoD,CORPORATE TRAVEL MANAGEMENT NORTH LTD,1011707169,351.13,TRAVEL EXPENSES -UK Wk 36,BD1 5HQ,ADMIN
FOOD STANDARDS AGENCY - Westminster,FOOD STANDARDS AGENCY - Westminster,2018-09-17,EXP - PURCHASE OF GOODS/SERVICES - RAIL TRAVEL,Non Meat Field Ops,CORPORATE TRAVEL MANAGEMENT NORTH LTD,1011707169,343.9,TRAVEL EXPENSES -UK Wk 36,BD1 5HQ,PROGRAMME
FOOD STANDARDS AGENCY - Westminster,FOOD STANDARDS AGENCY - Westminster,2018-09-17,EXP - PURCHASE OF GOODS/SERVICES - RAIL TRAVEL,Procurement,CORPORATE TRAVEL MANAGEMENT NORTH LTD,1011707169,332.5,TRAVEL EXPENSES -UK Wk 36,BD1 5HQ,ADMIN
FOOD STANDARDS AGENCY - Westminster,FOOD STANDARDS AGENCY - Westminster,2018-09-18,EXP - PURCHASE OF GOODS/SERVICES - TELECOMS - TELEPHONE,IT SERVICE DELIVERY,EXPONENTIAL E LTD,1011707178,332,CENTRALISED INTERNET,E1 8EU,ADMIN
FOOD STANDARDS AGENCY - Westminster,FOOD STANDARDS AGENCY - Westminster,2018-09-24,EXP - PURCHASE OF GOODS/SERVICES - SUBSISTENCE,Chemical Risk Assessment Unit,CORPORATE TRAVEL MANAGEMENT NORTH LTD,1011707208,325.8,TRAVEL EXPENSES UK wk 37,BD1 5HQ,ADMIN
FOOD STANDARDS AGENCY - Westminster,FOOD STANDARDS AGENCY - Westminster,2018-09-17,EXP - PURCHASE OF GOODS/SERVICES -  FOREIGN AIR TRAVEL,Legal Branch A & Investigations,CORPORATE TRAVEL MANAGEMENT NORTH LTD,1011707169,316.9,TRAVEL EXPENSES -UK Wk 36,BD1 5HQ,ADMIN
FOOD STANDARDS AGENCY - Westminster,FOOD STANDARDS AGENCY - Westminster,2018-09-24,EXP - PURCHASE OF GOODS/SERVICES - RAIL TRAVEL,Legal Branch A & Investigations,CORPORATE TRAVEL MANAGEMENT NORTH LTD,1011707208,305.8,TRAVEL EXPENSES UK wk 37,BD1 5HQ,ADMIN
FOOD STANDARDS AGENCY - Westminster,FOOD STANDARDS AGENCY - Westminster,2018-09-24,EXP - PURCHASE OF GOODS/SERVICES - RAIL TRAVEL,Wales and West 2 (Wales),CORPORATE TRAVEL MANAGEMENT NORTH LTD,1011707208,305.7,TRAVEL EXPENSES UK wk 37,BD1 5HQ,PROGRAMME
FOOD STANDARDS AGENCY - Westminster,FOOD STANDARDS AGENCY - Westminster,2018-09-24,EXP - PURCHASE OF GOODS/SERVICES - SUBSISTENCE,Corporate Support Unit,CORPORATE TRAVEL MANAGEMENT NORTH LTD,1011707208,293.2,TRAVEL EXPENSES UK wk 37,BD1 5HQ,ADMIN
FOOD STANDARDS AGENCY - Westminster,FOOD STANDARDS AGENCY - Westminster,2018-09-24,EXP - PURCHASE OF GOODS/SERVICES - RAIL TRAVEL,Food Incidents & Resilience - Prog,CORPORATE TRAVEL MANAGEMENT NORTH LTD,1011707208,292.4,TRAVEL EXPENSES UK wk 37,BD1 5HQ,PROGRAMME
FOOD STANDARDS AGENCY - Westminster,FOOD STANDARDS AGENCY - Westminster,2018-09-24,EXP - PURCHASE OF GOODS/SERVICES - RAIL TRAVEL,Wales and West 1 (England),CORPORATE TRAVEL MANAGEMENT NORTH LTD,1011707208,286.15,TRAVEL EXPENSES UK wk 37,BD1 5HQ,PROGRAMME
FOOD STANDARDS AGENCY - Westminster,FOOD STANDARDS AGENCY - Westminster,2018-09-17,EXP - PURCHASE OF GOODS/SERVICES - SUBSISTENCE,Chief Scientist,CORPORATE TRAVEL MANAGEMENT NORTH LTD,1011707169,269.6,TRAVEL EXPENSES -UK Wk 36,BD1 5HQ,ADMIN
FOOD STANDARDS AGENCY - Westminster,FOOD STANDARDS AGENCY - Westminster,2018-09-17,EXP - PURCHASE OF GOODS/SERVICES - RAIL TRAVEL,Contaminants HoD,CORPORATE TRAVEL MANAGEMENT NORTH LTD,1011707169,268.5,TRAVEL EXPENSES -UK Wk 36,BD1 5HQ,ADMIN
FOOD STANDARDS AGENCY - Westminster,FOOD STANDARDS AGENCY - Westminster,2018-09-24,EXP - PURCHASE OF GOODS/SERVICES - AIR TRAVEL,Regulating our Future,CORPORATE TRAVEL MANAGEMENT NORTH LTD,1011707208,268.31,TRAVEL EXPENSES UK wk 37,BD1 5HQ,ADMIN
FOOD STANDARDS AGENCY - Westminster,FOOD STANDARDS AGENCY - Westminster,2018-09-17,EXP - PURCHASE OF GOODS/SERVICES - RAIL TRAVEL,Chemical Risk Assessment Unit,CORPORATE TRAVEL MANAGEMENT NORTH LTD,1011707169,261.95,TRAVEL EXPENSES -UK Wk 36,BD1 5HQ,ADMIN
FOOD STANDARDS AGENCY - Westminster,FOOD STANDARDS AGENCY - Westminster,2018-09-24,EXP - PURCHASE OF GOODS/SERVICES - AIR TRAVEL,Comms Directors Office,CORPORATE TRAVEL MANAGEMENT NORTH LTD,1011707208,258.6,TRAVEL EXPENSES UK wk 37,BD1 5HQ,ADMIN
FOOD STANDARDS AGENCY - Westminster,FOOD STANDARDS AGENCY - Westminster,2018-09-17,EXP - PURCHASE OF GOODS/SERVICES - AIR TRAVEL,Contaminants Policy & Strategy Unit,CORPORATE TRAVEL MANAGEMENT NORTH LTD,1011707169,258,TRAVEL EXPENSES -UK Wk 36,BD1 5HQ,ADMIN
FOOD STANDARDS AGENCY - Westminster,FOOD STANDARDS AGENCY - Westminster,2018-09-17,EXP - PURCHASE OF GOODS/SERVICES -  FOREIGN AIR TRAVEL,Contaminants Policy & Strategy Unit,CORPORATE TRAVEL MANAGEMENT NORTH LTD,1011707169,258,TRAVEL EXPENSES -UK Wk 36,BD1 5HQ,ADMIN
FOOD STANDARDS AGENCY - Westminster,FOOD STANDARDS AGENCY - Westminster,2018-09-17,EXP - PURCHASE OF GOODS/SERVICES - SUBSISTENCE,Microbiological Food Safety Branch,CORPORATE TRAVEL MANAGEMENT NORTH LTD,1011707169,252,TRAVEL EXPENSES -UK Wk 36,BD1 5HQ,ADMIN
FOOD STANDARDS AGENCY - Westminster,FOOD STANDARDS AGENCY - Westminster,2018-09-24,EXP - PURCHASE OF GOODS/SERVICES - RAIL TRAVEL,Comms Directors Office,CORPORATE TRAVEL MANAGEMENT NORTH LTD,1011707208,241.9,TRAVEL EXPENSES UK wk 37,BD1 5HQ,ADMIN
FOOD STANDARDS AGENCY - Westminster,FOOD STANDARDS AGENCY - Westminster,2018-09-17,EXP - PURCHASE OF GOODS/SERVICES - RAIL TRAVEL,East 3,CORPORATE TRAVEL MANAGEMENT NORTH LTD,1011707169,238.5,TRAVEL EXPENSES -UK Wk 36,BD1 5HQ,PROGRAMME
FOOD STANDARDS AGENCY - Westminster,FOOD STANDARDS AGENCY - Westminster,2018-09-24,EXP - PURCHASE OF GOODS/SERVICES - RAIL TRAVEL,East 4,CORPORATE TRAVEL MANAGEMENT NORTH LTD,1011707208,231.2,TRAVEL EXPENSES UK wk 37,BD1 5HQ,PROGRAMME
FOOD STANDARDS AGENCY - Westminster,FOOD STANDARDS AGENCY - Westminster,2018-09-17,EXP - PURCHASE OF GOODS/SERVICES - RAIL TRAVEL,IT Information & Knowledge Management,CORPORATE TRAVEL MANAGEMENT NORTH LTD,1011707169,225.7,TRAVEL EXPENSES -UK Wk 36,BD1 5HQ,ADMIN
FOOD STANDARDS AGENCY - Westminster,FOOD STANDARDS AGENCY - Westminster,2018-09-24,EXP - PURCHASE OF GOODS/SERVICES - AIR TRAVEL,Additives,CORPORATE TRAVEL MANAGEMENT NORTH LTD,1011707208,224.77,TRAVEL EXPENSES UK wk 37,BD1 5HQ,ADMIN
FOOD STANDARDS AGENCY - Westminster,FOOD STANDARDS AGENCY - Westminster,2018-09-24,EXP - PURCHASE OF GOODS/SERVICES - SUBSISTENCE,East 1,CORPORATE TRAVEL MANAGEMENT NORTH LTD,1011707208,221.8,TRAVEL EXPENSES UK wk 37,BD1 5HQ,PROGRAMME
FOOD STANDARDS AGENCY - Westminster,FOOD STANDARDS AGENCY - Westminster,2018-09-17,EXP - PURCHASE OF GOODS/SERVICES - RAIL TRAVEL,Food Crime Unit - Admin,CORPORATE TRAVEL MANAGEMENT NORTH LTD,1011707169,218,TRAVEL EXPENSES -UK Wk 36,BD1 5HQ,ADMIN
FOOD STANDARDS AGENCY - Westminster,FOOD STANDARDS AGENCY - Westminster,2018-09-17,EXP - PURCHASE OF GOODS/SERVICES - SUBSISTENCE,FINANCE,CORPORATE TRAVEL MANAGEMENT NORTH LTD,1011707169,213.83,TRAVEL EXPENSES -UK Wk 36,BD1 5HQ,ADMIN
FOOD STANDARDS AGENCY - Westminster,FOOD STANDARDS AGENCY - Westminster,2018-09-24,EXP - PURCHASE OF GOODS/SERVICES - RAIL TRAVEL,Additives,CORPORATE TRAVEL MANAGEMENT NORTH LTD,1011707208,213.8,TRAVEL EXPENSES UK wk 37,BD1 5HQ,ADMIN
FOOD STANDARDS AGENCY - Westminster,FOOD STANDARDS AGENCY - Westminster,2018-09-24,EXP - PURCHASE OF GOODS/SERVICES - RAIL TRAVEL,Internal Audit,CORPORATE TRAVEL MANAGEMENT NORTH LTD,1011707208,207.7,TRAVEL EXPENSES UK wk 37,BD1 5HQ,ADMIN
FOOD STANDARDS AGENCY - Westminster,FOOD STANDARDS AGENCY - Westminster,2018-09-17,EXP - PURCHASE OF GOODS/SERVICES - SUBSISTENCE,Resilience - Admin,CORPORATE TRAVEL MANAGEMENT NORTH LTD,1011707169,205.6,TRAVEL EXPENSES -UK Wk 36,BD1 5HQ,ADMIN
FOOD STANDARDS AGENCY - Westminster,FOOD STANDARDS AGENCY - Westminster,2018-09-17,EXP - PURCHASE OF GOODS/SERVICES - SUBSISTENCE,Food Incidents & Resilience - Prog,CORPORATE TRAVEL MANAGEMENT NORTH LTD,1011707169,205.55,TRAVEL EXPENSES -UK Wk 36,BD1 5HQ,PROGRAMME
FOOD STANDARDS AGENCY - Westminster,FOOD STANDARDS AGENCY - Westminster,2018-09-24,EXP - PURCHASE OF GOODS/SERVICES - RAIL TRAVEL,IT Service Delivery,CORPORATE TRAVEL MANAGEMENT NORTH LTD,1011707208,198.3,TRAVEL EXPENSES UK wk 37,BD1 5HQ,ADMIN
FOOD STANDARDS AGENCY - Westminster,FOOD STANDARDS AGENCY - Westminster,2018-09-24,EXP - PURCHASE OF GOODS/SERVICES - RAIL TRAVEL,Wales and West 3 ,CORPORATE TRAVEL MANAGEMENT NORTH LTD,1011707208,191.3,TRAVEL EXPENSES UK wk 37,BD1 5HQ,PROGRAMME
FOOD STANDARDS AGENCY - Westminster,FOOD STANDARDS AGENCY - Westminster,2018-09-24,EXP - PURCHASE OF GOODS/SERVICES - RAIL TRAVEL,Allergens,CORPORATE TRAVEL MANAGEMENT NORTH LTD,1011707208,177.4,TRAVEL EXPENSES UK wk 37,BD1 5HQ,ADMIN
FOOD STANDARDS AGENCY - Westminster,FOOD STANDARDS AGENCY - Westminster,2018-09-17,EXP - PURCHASE OF GOODS/SERVICES - AIR TRAVEL,EU Regulatory Reform Branch,CORPORATE TRAVEL MANAGEMENT NORTH LTD,1011707169,170.88,TRAVEL EXPENSES -UK Wk 36,BD1 5HQ,ADMIN
FOOD STANDARDS AGENCY - Westminster,FOOD STANDARDS AGENCY - Westminster,2018-09-24,EXP - PURCHASE OF GOODS/SERVICES - RAIL TRAVEL,East 2,CORPORATE TRAVEL MANAGEMENT NORTH LTD,1011707208,168.35,TRAVEL EXPENSES UK wk 37,BD1 5HQ,PROGRAMME
FOOD STANDARDS AGENCY - Westminster,FOOD STANDARDS AGENCY - Westminster,2018-09-24,EXP - PURCHASE OF GOODS/SERVICES - SUBSISTENCE,East 4,CORPORATE TRAVEL MANAGEMENT NORTH LTD,1011707208,165.9,TRAVEL EXPENSES UK wk 37,BD1 5HQ,PROGRAMME
FOOD STANDARDS AGENCY - Westminster,FOOD STANDARDS AGENCY - Westminster,2018-09-17,EXP - PURCHASE OF GOODS/SERVICES - RAIL TRAVEL,Animal Feed Branch,CORPORATE TRAVEL MANAGEMENT NORTH LTD,1011707169,162.9,TRAVEL EXPENSES -UK Wk 36,BD1 5HQ,ADMIN
FOOD STANDARDS AGENCY - Westminster,FOOD STANDARDS AGENCY - Westminster,2018-09-24,EXP - PURCHASE OF GOODS/SERVICES - AIR TRAVEL,Food Crime Unit - Prog,CORPORATE TRAVEL MANAGEMENT NORTH LTD,1011707208,161.13,TRAVEL EXPENSES UK wk 37,BD1 5HQ,PROGRAMME
FOOD STANDARDS AGENCY - Westminster,FOOD STANDARDS AGENCY - Westminster,2018-09-24,EXP - PURCHASE OF GOODS/SERVICES -  FOREIGN AIR TRAVEL,EU Regulatory Reform Branch,CORPORATE TRAVEL MANAGEMENT NORTH LTD,1011707208,161,TRAVEL EXPENSES UK wk 37,BD1 5HQ,ADMIN
FOOD STANDARDS AGENCY - Westminster,FOOD STANDARDS AGENCY - Westminster,2018-09-17,EXP - PURCHASE OF GOODS/SERVICES - SUBSISTENCE,Corporate Support Unit,CORPORATE TRAVEL MANAGEMENT NORTH LTD,1011707169,160.7,TRAVEL EXPENSES -UK Wk 36,BD1 5HQ,ADMIN
FOOD STANDARDS AGENCY - Westminster,FOOD STANDARDS AGENCY - Westminster,2018-09-17,EXP - PURCHASE OF GOODS/SERVICES - RAIL TRAVEL,Allergens,CORPORATE TRAVEL MANAGEMENT NORTH LTD,1011707169,158.65,TRAVEL EXPENSES -UK Wk 36,BD1 5HQ,ADMIN
FOOD STANDARDS AGENCY - Westminster,FOOD STANDARDS AGENCY - Westminster,2018-09-24,EXP - PURCHASE OF GOODS/SERVICES -  FOREIGN AIR TRAVEL,Contaminants Policy & Strategy Unit,CORPORATE TRAVEL MANAGEMENT NORTH LTD,1011707208,158,TRAVEL EXPENSES UK wk 37,BD1 5HQ,ADMIN
FOOD STANDARDS AGENCY - Westminster,FOOD STANDARDS AGENCY - Westminster,2018-09-24,EXP - PURCHASE OF GOODS/SERVICES - SUBSISTENCE,Comms Directors Office,CORPORATE TRAVEL MANAGEMENT NORTH LTD,1011707208,154.2,TRAVEL EXPENSES UK wk 37,BD1 5HQ,ADMIN
FOOD STANDARDS AGENCY - Westminster,FOOD STANDARDS AGENCY - Westminster,2018-09-17,EXP - PURCHASE OF GOODS/SERVICES - RAIL TRAVEL,Contaminants Policy & Strategy Unit,CORPORATE TRAVEL MANAGEMENT NORTH LTD,1011707169,152.7,TRAVEL EXPENSES -UK Wk 36,BD1 5HQ,ADMIN
FOOD STANDARDS AGENCY - Westminster,FOOD STANDARDS AGENCY - Westminster,2018-09-17,EXP - PURCHASE OF GOODS/SERVICES - AIR TRAVEL,Organisational Development,CORPORATE TRAVEL MANAGEMENT NORTH LTD,1011707169,149.55,TRAVEL EXPENSES -UK Wk 36,BD1 5HQ,ADMIN
FOOD STANDARDS AGENCY - Westminster,FOOD STANDARDS AGENCY - Westminster,2018-09-24,EXP - PURCHASE OF GOODS/SERVICES -  FOREIGN AIR TRAVEL,Internal Audit,CORPORATE TRAVEL MANAGEMENT NORTH LTD,1011707208,146.63,TRAVEL EXPENSES UK wk 37,BD1 5HQ,ADMIN
FOOD STANDARDS AGENCY - Westminster,FOOD STANDARDS AGENCY - Westminster,2018-09-24,EXP - PURCHASE OF GOODS/SERVICES - RAIL TRAVEL,Wales and West 4 ,CORPORATE TRAVEL MANAGEMENT NORTH LTD,1011707208,142.3,TRAVEL EXPENSES UK wk 37,BD1 5HQ,PROGRAMME
FOOD STANDARDS AGENCY - Westminster,FOOD STANDARDS AGENCY - Westminster,2018-09-24,EXP - PURCHASE OF GOODS/SERVICES -  FOREIGN AIR TRAVEL,Regulatory & International,CORPORATE TRAVEL MANAGEMENT NORTH LTD,1011707208,141,TRAVEL EXPENSES UK wk 37,BD1 5HQ,ADMIN
FOOD STANDARDS AGENCY - Westminster,FOOD STANDARDS AGENCY - Westminster,2018-09-24,EXP - PURCHASE OF GOODS/SERVICES - AIR TRAVEL,EU Regulatory Reform Branch,CORPORATE TRAVEL MANAGEMENT NORTH LTD,1011707208,140.9,TRAVEL EXPENSES UK wk 37,BD1 5HQ,ADMIN
FOOD STANDARDS AGENCY - Westminster,FOOD STANDARDS AGENCY - Westminster,2018-09-17,EXP - PURCHASE OF GOODS/SERVICES - SUBSISTENCE,Planning and Performance,CORPORATE TRAVEL MANAGEMENT NORTH LTD,1011707169,139.7,TRAVEL EXPENSES -UK Wk 36,BD1 5HQ,ADMIN
FOOD STANDARDS AGENCY - Westminster,FOOD STANDARDS AGENCY - Westminster,2018-09-24,EXP - PURCHASE OF GOODS/SERVICES - SUBSISTENCE,Regulatory & International,CORPORATE TRAVEL MANAGEMENT NORTH LTD,1011707208,138.7,TRAVEL EXPENSES UK wk 37,BD1 5HQ,ADMIN
FOOD STANDARDS AGENCY - Westminster,FOOD STANDARDS AGENCY - Westminster,2018-09-17,EXP - PURCHASE OF GOODS/SERVICES - RAIL TRAVEL,Wales and West 2 (England),CORPORATE TRAVEL MANAGEMENT NORTH LTD,1011707169,138.2,TRAVEL EXPENSES -UK Wk 36,BD1 5HQ,PROGRAMME
FOOD STANDARDS AGENCY - Westminster,FOOD STANDARDS AGENCY - Westminster,2018-09-17,EXP - PURCHASE OF GOODS/SERVICES - RAIL TRAVEL,Analysis & Research Branch,CORPORATE TRAVEL MANAGEMENT NORTH LTD,1011707169,136.2,TRAVEL EXPENSES -UK Wk 36,BD1 5HQ,ADMIN
FOOD STANDARDS AGENCY - Westminster,FOOD STANDARDS AGENCY - Westminster,2018-09-24,EXP - PURCHASE OF GOODS/SERVICES - RAIL TRAVEL,EU Regulatory Reform Branch,CORPORATE TRAVEL MANAGEMENT NORTH LTD,1011707208,128.8,TRAVEL EXPENSES UK wk 37,BD1 5HQ,ADMIN
FOOD STANDARDS AGENCY - Westminster,FOOD STANDARDS AGENCY - Westminster,2018-09-24,EXP - PURCHASE OF GOODS/SERVICES - SUBSISTENCE,Microbiological Food Safety Branch,CORPORATE TRAVEL MANAGEMENT NORTH LTD,1011707208,126.6,TRAVEL EXPENSES UK wk 37,BD1 5HQ,ADMIN
FOOD STANDARDS AGENCY - Westminster,FOOD STANDARDS AGENCY - Westminster,2018-09-24,EXP - PURCHASE OF GOODS/SERVICES - SUBSISTENCE,Non Meat Field Ops,CORPORATE TRAVEL MANAGEMENT NORTH LTD,1011707208,124.8,TRAVEL EXPENSES UK wk 37,BD1 5HQ,PROGRAMME
FOOD STANDARDS AGENCY - Westminster,FOOD STANDARDS AGENCY - Westminster,2018-09-17,EXP - PURCHASE OF GOODS/SERVICES - RAIL TRAVEL,Additives,CORPORATE TRAVEL MANAGEMENT NORTH LTD,1011707169,124.5,TRAVEL EXPENSES -UK Wk 36,BD1 5HQ,ADMIN
FOOD STANDARDS AGENCY - Westminster,FOOD STANDARDS AGENCY - Westminster,2018-09-17,EXP - PURCHASE OF GOODS/SERVICES - RAIL TRAVEL,Internal Audit,CORPORATE TRAVEL MANAGEMENT NORTH LTD,1011707169,121.8,TRAVEL EXPENSES -UK Wk 36,BD1 5HQ,ADMIN
FOOD STANDARDS AGENCY - Westminster,FOOD STANDARDS AGENCY - Westminster,2018-09-24,EXP - PURCHASE OF GOODS/SERVICES - RAIL TRAVEL,Resilience - Admin,CORPORATE TRAVEL MANAGEMENT NORTH LTD,1011707208,121.5,TRAVEL EXPENSES UK wk 37,BD1 5HQ,ADMIN
FOOD STANDARDS AGENCY - Westminster,FOOD STANDARDS AGENCY - Westminster,2018-09-24,EXP - PURCHASE OF GOODS/SERVICES - AIR TRAVEL,Food Incidents & Resilience - Prog,CORPORATE TRAVEL MANAGEMENT NORTH LTD,1011707208,118.65,TRAVEL EXPENSES UK wk 37,BD1 5HQ,PROGRAMME
FOOD STANDARDS AGENCY - Westminster,FOOD STANDARDS AGENCY - Westminster,2018-09-24,EXP - PURCHASE OF GOODS/SERVICES - SUBSISTENCE,East 2,CORPORATE TRAVEL MANAGEMENT NORTH LTD,1011707208,115.2,TRAVEL EXPENSES UK wk 37,BD1 5HQ,PROGRAMME
FOOD STANDARDS AGENCY - Westminster,FOOD STANDARDS AGENCY - Westminster,2018-09-17,EXP - PURCHASE OF GOODS/SERVICES - SUBSISTENCE,Food Crime Unit - Prog,CORPORATE TRAVEL MANAGEMENT NORTH LTD,1011707169,113.4,TRAVEL EXPENSES -UK Wk 36,BD1 5HQ,PROGRAMME
FOOD STANDARDS AGENCY - Westminster,FOOD STANDARDS AGENCY - Westminster,2018-09-17,EXP - PURCHASE OF GOODS/SERVICES - SUBSISTENCE,Programme and project delivery,CORPORATE TRAVEL MANAGEMENT NORTH LTD,1011707169,112.2,TRAVEL EXPENSES -UK Wk 36,BD1 5HQ,ADMIN
FOOD STANDARDS AGENCY - Westminster,FOOD STANDARDS AGENCY - Westminster,2018-09-24,EXP - PURCHASE OF GOODS/SERVICES - RAIL TRAVEL,Imports & Exports Team (Admin),CORPORATE TRAVEL MANAGEMENT NORTH LTD,1011707208,111,TRAVEL EXPENSES UK wk 37,BD1 5HQ,ADMIN
FOOD STANDARDS AGENCY - Westminster,FOOD STANDARDS AGENCY - Westminster,2018-09-17,EXP - PURCHASE OF GOODS/SERVICES - SUBSISTENCE,Chair & Deputy Chair,CORPORATE TRAVEL MANAGEMENT NORTH LTD,1011707169,110.6,TRAVEL EXPENSES -UK Wk 36,BD1 5HQ,ADMIN
FOOD STANDARDS AGENCY - Westminster,FOOD STANDARDS AGENCY - Westminster,2018-09-24,EXP - PURCHASE OF GOODS/SERVICES - RAIL TRAVEL,North 4,CORPORATE TRAVEL MANAGEMENT NORTH LTD,1011707208,110.5,TRAVEL EXPENSES UK wk 37,BD1 5HQ,PROGRAMME
FOOD STANDARDS AGENCY - Westminster,FOOD STANDARDS AGENCY - Westminster,2018-09-24,EXP - PURCHASE OF GOODS/SERVICES - SUBSISTENCE,Procurement,CORPORATE TRAVEL MANAGEMENT NORTH LTD,1011707208,110,TRAVEL EXPENSES UK wk 37,BD1 5HQ,ADMIN
FOOD STANDARDS AGENCY - Westminster,FOOD STANDARDS AGENCY - Westminster,2018-09-24,EXP - PURCHASE OF GOODS/SERVICES - SUBSISTENCE,Digital,CORPORATE TRAVEL MANAGEMENT NORTH LTD,1011707208,107.55,TRAVEL EXPENSES UK wk 37,BD1 5HQ,ADMIN
FOOD STANDARDS AGENCY - Westminster,FOOD STANDARDS AGENCY - Westminster,2018-09-24,EXP - PURCHASE OF GOODS/SERVICES - SUBSISTENCE,Planning and Performance,CORPORATE TRAVEL MANAGEMENT NORTH LTD,1011707208,106.6,TRAVEL EXPENSES UK wk 37,BD1 5HQ,ADMIN
FOOD STANDARDS AGENCY - Westminster,FOOD STANDARDS AGENCY - Westminster,2018-09-17,EXP - PURCHASE OF GOODS/SERVICES - SUBSISTENCE,East 4,CORPORATE TRAVEL MANAGEMENT NORTH LTD,1011707169,103.1,TRAVEL EXPENSES -UK Wk 36,BD1 5HQ,PROGRAMME
FOOD STANDARDS AGENCY - Westminster,FOOD STANDARDS AGENCY - Westminster,2018-09-17,EXP - PURCHASE OF GOODS/SERVICES - AIR TRAVEL,REGULATORY DELIVERY,CORPORATE TRAVEL MANAGEMENT NORTH LTD,1011707169,99.98,TRAVEL EXPENSES -UK Wk 36,BD1 5HQ,ADMIN
FOOD STANDARDS AGENCY - Westminster,FOOD STANDARDS AGENCY - Westminster,2018-09-17,EXP - PURCHASE OF GOODS/SERVICES - SUBSISTENCE,Wales and West 2 (England),CORPORATE TRAVEL MANAGEMENT NORTH LTD,1011707169,98.7,TRAVEL EXPENSES -UK Wk 36,BD1 5HQ,PROGRAMME
FOOD STANDARDS AGENCY - Westminster,FOOD STANDARDS AGENCY - Westminster,2018-09-17,EXP - PURCHASE OF GOODS/SERVICES - SUBSISTENCE,Chemical Risk Assessment Unit,CORPORATE TRAVEL MANAGEMENT NORTH LTD,1011707169,93.7,TRAVEL EXPENSES -UK Wk 36,BD1 5HQ,ADMIN
FOOD STANDARDS AGENCY - Westminster,FOOD STANDARDS AGENCY - Westminster,2018-09-24,EXP - PURCHASE OF GOODS/SERVICES - SUBSISTENCE,EU Regulatory Reform Branch,CORPORATE TRAVEL MANAGEMENT NORTH LTD,1011707208,89.6,TRAVEL EXPENSES UK wk 37,BD1 5HQ,ADMIN
FOOD STANDARDS AGENCY - Westminster,FOOD STANDARDS AGENCY - Westminster,2018-09-24,EXP - PURCHASE OF GOODS/SERVICES - SUBSISTENCE,FINANCE,CORPORATE TRAVEL MANAGEMENT NORTH LTD,1011707208,89.6,TRAVEL EXPENSES UK wk 37,BD1 5HQ,ADMIN
FOOD STANDARDS AGENCY - Westminster,FOOD STANDARDS AGENCY - Westminster,2018-09-24,EXP - PURCHASE OF GOODS/SERVICES - AIR TRAVEL,Organisational Development,CORPORATE TRAVEL MANAGEMENT NORTH LTD,1011707208,88.65,TRAVEL EXPENSES UK wk 37,BD1 5HQ,ADMIN
FOOD STANDARDS AGENCY - Westminster,FOOD STANDARDS AGENCY - Westminster,2018-09-17,EXP - PURCHASE OF GOODS/SERVICES - SUBSISTENCE,Non Meat Field Ops,CORPORATE TRAVEL MANAGEMENT NORTH LTD,1011707169,88.2,TRAVEL EXPENSES -UK Wk 36,BD1 5HQ,PROGRAMME
FOOD STANDARDS AGENCY - Westminster,FOOD STANDARDS AGENCY - Westminster,2018-09-24,EXP - PURCHASE OF GOODS/SERVICES - AIR TRAVEL,IT Information & Knowledge Management,CORPORATE TRAVEL MANAGEMENT NORTH LTD,1011707208,88.16,TRAVEL EXPENSES UK wk 37,BD1 5HQ,ADMIN
FOOD STANDARDS AGENCY - Westminster,FOOD STANDARDS AGENCY - Westminster,2018-09-24,EXP - PURCHASE OF GOODS/SERVICES - SUBSISTENCE,Wales and West 4 ,CORPORATE TRAVEL MANAGEMENT NORTH LTD,1011707208,84.1,TRAVEL EXPENSES UK wk 37,BD1 5HQ,PROGRAMME
FOOD STANDARDS AGENCY - Westminster,FOOD STANDARDS AGENCY - Westminster,2018-09-24,EXP - PURCHASE OF GOODS/SERVICES - SUBSISTENCE,Imports & Exports Team (Admin),CORPORATE TRAVEL MANAGEMENT NORTH LTD,1011707208,83.6,TRAVEL EXPENSES UK wk 37,BD1 5HQ,ADMIN
FOOD STANDARDS AGENCY - Westminster,FOOD STANDARDS AGENCY - Westminster,2018-09-17,EXP - PURCHASE OF GOODS/SERVICES - RAIL TRAVEL,Wales and West 4 ,CORPORATE TRAVEL MANAGEMENT NORTH LTD,1011707169,82.1,TRAVEL EXPENSES -UK Wk 36,BD1 5HQ,PROGRAMME
FOOD STANDARDS AGENCY - Westminster,FOOD STANDARDS AGENCY - Westminster,2018-09-24,EXP - PURCHASE OF GOODS/SERVICES - SUBSISTENCE,Analysis & Research Branch,CORPORATE TRAVEL MANAGEMENT NORTH LTD,1011707208,80.7,TRAVEL EXPENSES UK wk 37,BD1 5HQ,ADMIN
FOOD STANDARDS AGENCY - Westminster,FOOD STANDARDS AGENCY - Westminster,2018-09-17,EXP - PURCHASE OF GOODS/SERVICES - SUBSISTENCE,Wales and West 2 (Wales),CORPORATE TRAVEL MANAGEMENT NORTH LTD,1011707169,79.7,TRAVEL EXPENSES -UK Wk 36,BD1 5HQ,PROGRAMME
FOOD STANDARDS AGENCY - Westminster,FOOD STANDARDS AGENCY - Westminster,2018-09-24,EXP - PURCHASE OF GOODS/SERVICES - RAIL TRAVEL,East 1,CORPORATE TRAVEL MANAGEMENT NORTH LTD,1011707208,77.75,TRAVEL EXPENSES UK wk 37,BD1 5HQ,PROGRAMME
FOOD STANDARDS AGENCY - Westminster,FOOD STANDARDS AGENCY - Westminster,2018-09-24,EXP - PURCHASE OF GOODS/SERVICES - RAIL TRAVEL,Wales and West 2 (England),CORPORATE TRAVEL MANAGEMENT NORTH LTD,1011707208,71.4,TRAVEL EXPENSES UK wk 37,BD1 5HQ,PROGRAMME
FOOD STANDARDS AGENCY - Westminster,FOOD STANDARDS AGENCY - Westminster,2018-09-24,EXP - PURCHASE OF GOODS/SERVICES - AIR TRAVEL,North 4,CORPORATE TRAVEL MANAGEMENT NORTH LTD,1011707208,66.43,TRAVEL EXPENSES UK wk 37,BD1 5HQ,PROGRAMME
FOOD STANDARDS AGENCY - Westminster,FOOD STANDARDS AGENCY - Westminster,2018-09-17,EXP - PURCHASE OF GOODS/SERVICES - SUBSISTENCE,Wales and West 1 (England),CORPORATE TRAVEL MANAGEMENT NORTH LTD,1011707169,65.6,TRAVEL EXPENSES -UK Wk 36,BD1 5HQ,PROGRAMME
FOOD STANDARDS AGENCY - Westminster,FOOD STANDARDS AGENCY - Westminster,2018-09-17,EXP - PURCHASE OF GOODS/SERVICES - RAIL TRAVEL,Wales and West 2 (Wales),CORPORATE TRAVEL MANAGEMENT NORTH LTD,1011707169,63.9,TRAVEL EXPENSES -UK Wk 36,BD1 5HQ,PROGRAMME
FOOD STANDARDS AGENCY - Westminster,FOOD STANDARDS AGENCY - Westminster,2018-09-17,EXP - PURCHASE OF GOODS/SERVICES - RAIL TRAVEL,Wales and West 1 (England),CORPORATE TRAVEL MANAGEMENT NORTH LTD,1011707169,61.5,TRAVEL EXPENSES -UK Wk 36,BD1 5HQ,PROGRAMME
FOOD STANDARDS AGENCY - Westminster,FOOD STANDARDS AGENCY - Westminster,2018-09-17,EXP - PURCHASE OF GOODS/SERVICES - RAIL TRAVEL,East 1,CORPORATE TRAVEL MANAGEMENT NORTH LTD,1011707169,59.8,TRAVEL EXPENSES -UK Wk 36,BD1 5HQ,PROGRAMME
FOOD STANDARDS AGENCY - Westminster,FOOD STANDARDS AGENCY - Westminster,2018-09-17,EXP - PURCHASE OF GOODS/SERVICES - AIR TRAVEL,Operational Delivery,CORPORATE TRAVEL MANAGEMENT NORTH LTD,1011707169,57.34,TRAVEL EXPENSES -UK Wk 36,BD1 5HQ,PROGRAMME
FOOD STANDARDS AGENCY - Westminster,FOOD STANDARDS AGENCY - Westminster,2018-09-17,EXP - PURCHASE OF GOODS/SERVICES - SUBSISTENCE,East 2,CORPORATE TRAVEL MANAGEMENT NORTH LTD,1011707169,56.1,TRAVEL EXPENSES -UK Wk 36,BD1 5HQ,PROGRAMME
FOOD STANDARDS AGENCY - Westminster,FOOD STANDARDS AGENCY - Westminster,2018-09-17,EXP - PURCHASE OF GOODS/SERVICES - SUBSISTENCE,IT Service Delivery,CORPORATE TRAVEL MANAGEMENT NORTH LTD,1011707169,56.1,TRAVEL EXPENSES -UK Wk 36,BD1 5HQ,ADMIN
FOOD STANDARDS AGENCY - Westminster,FOOD STANDARDS AGENCY - Westminster,2018-09-17,EXP - PURCHASE OF GOODS/SERVICES - SUBSISTENCE,North 4,CORPORATE TRAVEL MANAGEMENT NORTH LTD,1011707169,56.1,TRAVEL EXPENSES -UK Wk 36,BD1 5HQ,PROGRAMME
FOOD STANDARDS AGENCY - Westminster,FOOD STANDARDS AGENCY - Westminster,2018-09-24,EXP - PURCHASE OF GOODS/SERVICES - SUBSISTENCE,Additives,CORPORATE TRAVEL MANAGEMENT NORTH LTD,1011707208,55.3,TRAVEL EXPENSES UK wk 37,BD1 5HQ,ADMIN
FOOD STANDARDS AGENCY - Westminster,FOOD STANDARDS AGENCY - Westminster,2018-09-24,EXP - PURCHASE OF GOODS/SERVICES - SUBSISTENCE,Allergens,CORPORATE TRAVEL MANAGEMENT NORTH LTD,1011707208,53.1,TRAVEL EXPENSES UK wk 37,BD1 5HQ,ADMIN
FOOD STANDARDS AGENCY - Westminster,FOOD STANDARDS AGENCY - Westminster,2018-09-24,EXP - PURCHASE OF GOODS/SERVICES - SUBSISTENCE,Wales and West 1 (Wales),CORPORATE TRAVEL MANAGEMENT NORTH LTD,1011707208,50.1,TRAVEL EXPENSES UK wk 37,BD1 5HQ,PROGRAMME
FOOD STANDARDS AGENCY - Westminster,FOOD STANDARDS AGENCY - Westminster,2018-09-24,EXP - PURCHASE OF GOODS/SERVICES - RAIL TRAVEL,Procurement,CORPORATE TRAVEL MANAGEMENT NORTH LTD,1011707208,49.2,TRAVEL EXPENSES UK wk 37,BD1 5HQ,ADMIN
FOOD STANDARDS AGENCY - Westminster,FOOD STANDARDS AGENCY - Westminster,2018-09-24,EXP - PURCHASE OF GOODS/SERVICES - SUBSISTENCE,Wales and West 2 (Wales),CORPORATE TRAVEL MANAGEMENT NORTH LTD,1011707208,49.1,TRAVEL EXPENSES UK wk 37,BD1 5HQ,PROGRAMME
FOOD STANDARDS AGENCY - Westminster,FOOD STANDARDS AGENCY - Westminster,2018-09-17,EXP - PURCHASE OF GOODS/SERVICES - SUBSISTENCE,North 1,CORPORATE TRAVEL MANAGEMENT NORTH LTD,1011707169,47.6,TRAVEL EXPENSES -UK Wk 36,BD1 5HQ,PROGRAMME
FOOD STANDARDS AGENCY - Westminster,FOOD STANDARDS AGENCY - Westminster,2018-09-17,EXP - PURCHASE OF GOODS/SERVICES - RAIL TRAVEL,Chief Executive & Private Office,CORPORATE TRAVEL MANAGEMENT NORTH LTD,1011707169,44.8,TRAVEL EXPENSES -UK Wk 36,BD1 5HQ,ADMIN
FOOD STANDARDS AGENCY - Westminster,FOOD STANDARDS AGENCY - Westminster,2018-09-24,EXP - PURCHASE OF GOODS/SERVICES - SUBSISTENCE,Wales and West 3 ,CORPORATE TRAVEL MANAGEMENT NORTH LTD,1011707208,43.6,TRAVEL EXPENSES UK wk 37,BD1 5HQ,PROGRAMME
FOOD STANDARDS AGENCY - Westminster,FOOD STANDARDS AGENCY - Westminster,2018-09-17,EXP - PURCHASE OF GOODS/SERVICES - RAIL TRAVEL,Resilience - Admin,CORPORATE TRAVEL MANAGEMENT NORTH LTD,1011707169,42.7,TRAVEL EXPENSES -UK Wk 36,BD1 5HQ,ADMIN
FOOD STANDARDS AGENCY - Westminster,FOOD STANDARDS AGENCY - Westminster,2018-09-17,EXP - PURCHASE OF GOODS/SERVICES - OTHER TRAVEL,Comms Directors Office,CORPORATE TRAVEL MANAGEMENT NORTH LTD,1011707169,31.95,TRAVEL EXPENSES -UK Wk 36,BD1 5HQ,ADMIN
FOOD STANDARDS AGENCY - Westminster,FOOD STANDARDS AGENCY - Westminster,2018-09-24,EXP - PURCHASE OF GOODS/SERVICES - RAIL TRAVEL,Animal Feed Branch,CORPORATE TRAVEL MANAGEMENT NORTH LTD,1011707208,29.3,TRAVEL EXPENSES UK wk 37,BD1 5HQ,ADMIN
FOOD STANDARDS AGENCY - Westminster,FOOD STANDARDS AGENCY - Westminster,2018-09-24,EXP - PURCHASE OF GOODS/SERVICES - RAIL TRAVEL,North 1,CORPORATE TRAVEL MANAGEMENT NORTH LTD,1011707208,27.5,TRAVEL EXPENSES UK wk 37,BD1 5HQ,PROGRAMME
FOOD STANDARDS AGENCY - Westminster,FOOD STANDARDS AGENCY - Westminster,2018-09-17,EXP - PURCHASE OF GOODS/SERVICES - OTHER TRAVEL,Contaminants HoD,CORPORATE TRAVEL MANAGEMENT NORTH LTD,1011707169,25.4,TRAVEL EXPENSES -UK Wk 36,BD1 5HQ,ADMIN
FOOD STANDARDS AGENCY - Westminster,FOOD STANDARDS AGENCY - Westminster,2018-09-24,EXP - PURCHASE OF GOODS/SERVICES - OTHER TRAVEL,Food Crime Unit - Admin,CORPORATE TRAVEL MANAGEMENT NORTH LTD,1011707208,25.4,TRAVEL EXPENSES UK wk 37,BD1 5HQ,ADMIN
FOOD STANDARDS AGENCY - Westminster,FOOD STANDARDS AGENCY - Westminster,2018-09-17,EXP - PURCHASE OF GOODS/SERVICES - OTHER TRAVEL,Analysis & Research Branch,CORPORATE TRAVEL MANAGEMENT NORTH LTD,1011707169,18.1,TRAVEL EXPENSES -UK Wk 36,BD1 5HQ,ADMIN
FOOD STANDARDS AGENCY - Westminster,FOOD STANDARDS AGENCY - Westminster,2018-09-24,EXP - PURCHASE OF GOODS/SERVICES - RAIL TRAVEL,FINANCE,CORPORATE TRAVEL MANAGEMENT NORTH LTD,1011707208,9.83,TRAVEL EXPENSES UK wk 37,BD1 5HQ,ADMIN
FOOD STANDARDS AGENCY - Westminster,FOOD STANDARDS AGENCY - Westminster,2018-09-24,EXP - PURCHASE OF GOODS/SERVICES - RAIL TRAVEL,Contaminants Policy & Strategy Unit,CORPORATE TRAVEL MANAGEMENT NORTH LTD,1011707208,8.6,TRAVEL EXPENSES UK wk 37,BD1 5HQ,ADMIN
FOOD STANDARDS AGENCY - Westminster,FOOD STANDARDS AGENCY - Westminster,2018-09-24,EXP - PURCHASE OF GOODS/SERVICES - FOREIGN SUBSISTENCE,Contaminants HoD,CORPORATE TRAVEL MANAGEMENT NORTH LTD,1011707208,1.8,TRAVEL EXPENSES UK wk 37,BD1 5HQ,ADMIN
FOOD STANDARDS AGENCY - Westminster,FOOD STANDARDS AGENCY - Westminster,2018-09-17,EXP - PURCHASE OF GOODS/SERVICES - FOREIGN SUBSISTENCE,Contaminants Policy & Strategy Unit,CORPORATE TRAVEL MANAGEMENT NORTH LTD,1011707169,1.8,TRAVEL EXPENSES -UK Wk 36,BD1 5HQ,ADMIN
FOOD STANDARDS AGENCY - Westminster,FOOD STANDARDS AGENCY - Westminster,2018-09-17,EXP - PURCHASE OF GOODS/SERVICES - FOREIGN SUBSISTENCE,Contaminants HoD,CORPORATE TRAVEL MANAGEMENT NORTH LTD,1011707169,1.2,TRAVEL EXPENSES -UK Wk 36,BD1 5HQ,ADMIN
FOOD STANDARDS AGENCY - Westminster,FOOD STANDARDS AGENCY - Westminster,2018-09-17,EXP - PURCHASE OF GOODS/SERVICES - FOREIGN SUBSISTENCE,IT Information & Knowledge Management,CORPORATE TRAVEL MANAGEMENT NORTH LTD,1011707169,1.2,TRAVEL EXPENSES -UK Wk 36,BD1 5HQ,ADMIN
FOOD STANDARDS AGENCY - Westminster,FOOD STANDARDS AGENCY - Westminster,2018-09-17,EXP - PURCHASE OF GOODS/SERVICES - FOREIGN SUBSISTENCE,Allergens,CORPORATE TRAVEL MANAGEMENT NORTH LTD,1011707169,0.6,TRAVEL EXPENSES -UK Wk 36,BD1 5HQ,ADMIN
FOOD STANDARDS AGENCY - Westminster,FOOD STANDARDS AGENCY - Westminster,2018-09-24,EXP - PURCHASE OF GOODS/SERVICES - SUBSISTENCE,Animal Feed Branch,CORPORATE TRAVEL MANAGEMENT NORTH LTD,1011707208,0.6,TRAVEL EXPENSES UK wk 37,BD1 5HQ,ADMIN
FOOD STANDARDS AGENCY - Westminster,FOOD STANDARDS AGENCY - Westminster,2018-09-24,EXP - PURCHASE OF GOODS/SERVICES - FOREIGN SUBSISTENCE,EU Regulatory Reform Branch,CORPORATE TRAVEL MANAGEMENT NORTH LTD,1011707208,0.6,TRAVEL EXPENSES UK wk 37,BD1 5HQ,ADMIN
FOOD STANDARDS AGENCY - Westminster,FOOD STANDARDS AGENCY - Westminster,2018-09-17,EXP - PURCHASE OF GOODS/SERVICES - FOREIGN SUBSISTENCE,Food Hygiene Policy Branch,CORPORATE TRAVEL MANAGEMENT NORTH LTD,1011707169,0.6,TRAVEL EXPENSES -UK Wk 36,BD1 5HQ,ADMIN
FOOD STANDARDS AGENCY - Westminster,FOOD STANDARDS AGENCY - Westminster,2018-09-24,EXP - PURCHASE OF GOODS/SERVICES - FOREIGN SUBSISTENCE,Internal Audit,CORPORATE TRAVEL MANAGEMENT NORTH LTD,1011707208,0.6,TRAVEL EXPENSES UK wk 37,BD1 5HQ,ADMIN
FOOD STANDARDS AGENCY - Westminster,FOOD STANDARDS AGENCY - Westminster,2018-09-24,EXP - PURCHASE OF GOODS/SERVICES - RAIL TRAVEL,East 3,CORPORATE TRAVEL MANAGEMENT NORTH LTD,1011707208,-101,TRAVEL EXPENSES UK wk 37,BD1 5HQ,PROGRAMME
FOOD STANDARDS AGENCY - Westminster,FOOD STANDARDS AGENCY - Westminster,2018-09-24,EXP - PURCHASE OF GOODS/SERVICES - SUBSISTENCE,North 4,CORPORATE TRAVEL MANAGEMENT NORTH LTD,1011707208,-127.95,TRAVEL EXPENSES UK wk 37,BD1 5HQ,PROGRAMME
FOOD STANDARDS AGENCY - Westminster,FOOD STANDARDS AGENCY - Westminster,2018-09-17,EXP - PURCHASE OF GOODS/SERVICES - RAIL TRAVEL,Operations Assurance ,CORPORATE TRAVEL MANAGEMENT NORTH LTD,1011707169,-156,TRAVEL EXPENSES -UK Wk 36,BD1 5HQ,PROGRAMME
